Workbook

Sheet 1. Wedding Costs and Expenses
F2: Wedding Checklist
B4: Below is a table of common expenses to budget for when planning a wedding.
B5: Simply fill in the estimated costs of expenses that apply to you, (or leave them blank).
F8: approximate cost in dollars
B9: Attire | D9: Gown | F9: 800
D10: Bridal shoes | F10: 200
D11: Bridal slip | F11: 50
D12: Lingerie | F12: 10
D13: Hosiery
D14: Jewellery
D15: Bridal headpiece/veil
D16: Bridal gloves
D17: Bridesmaid dresses
D18: Bridesmaid accessories
D19: Bridesmaid shoes
D20: Groom's tux
D21: Groomsmen tuxes
D22: Garters
D23: Gown preservation
D24: Alterations
D25: Going-away outfit
D26: Honeymoon clothes
D27: Children's apparel
B28: Flowers | D28: Bride's bouquet
D29: Bridesmaids bouquets
D30: Corsages
D31: Boutonnière
D32: Reception centrepieces
D33: Altarpiece
D34: Pew/chair bows
D35: Throw away bouquet
D36: Flower girls' flowers
B37: Stationery | D37: Announcements
D38: Invitations
D39: Map/direction cards
D40: Reply cards
D41: Ceremony cards
D42: Save-the-date cards
D43: Postage
D44: Calligrapher
D45: Newspaper announcement
D46: Thank you notes
D47: Rehearsal dinner invitations
D48: Bridesmaid luncheon invitations
D49: Bachelor party invitations
D50: Wedding programs
D51: Address labels
B52: Reception | D52: Location fee
D53: Caterer
D54: Food
D55: Baker
D56: Band
D57: Bar tender
D58: Beverages
D59: Security
D60: Wedding cake
D61: Cake knife
D62: Cake decorations
D63: Dishes
D64: Glassware
D65: Napkins
D66: Linens
D67: Tables
D68: Chairs
D69: Guest book
D70: Entertainment
D71: Rice/Rose petals/bubbles
D72: Parking
D73: Gratuities
D74: Limousine/Carriage
D75: Transportation
D76: Childcare
D77: Balloons
B78: Gifts & Favours | D78: Attendant gifts
D79: Gift for fiancee
D80: Favours
B81: Ceremony | D81: Clergy
D82: Location fee
D83: Altar decorations
D84: Chair/pew rental
D85: Pew/chair decorations
D86: Guestbook/pen
D87: Ring bearer pillow
D88: Flower girl basket
D89: Unity candle
D90: Aisle runner
D91: Ushers
D92: Gratuity
D93: Transportation
D94: Childcare
B95: Rehearsal dinner | D95: Caterer
D96: Bartender
D97: Liquor
D98: Tables/chairs
D99: Decorations
D100: Security
D101: Music
D102: Sound system
D103: Guest parking
D104: Dishes
D105: Centrepieces
D106: Linens
D107: Food
D108: Waitstaff
B109: Photography | D109: Bridal portraits
D110: Reception
D111: Ceremony
D112: Photo albums
D113: Engagement portraits
B114: Rings | D114: Wedding bands
D115: Engagement ring
D116: Engraving
B117: Honeymoon | D117: Airefares
D118: Accommodation
D119: Rental Car
D120: Entertainment
D121: Misc
B122: Misc | D122: Marriage license
D123: Bridesmaids' luncheon
D124: Hairdresser
D125: Manicure/Pedicure
D126: Manicure.pedicure for attendants
D127: Make-up
D128: Wedding planner/organiser
D129: Consultant/coordinator
D130: Hotel for guests
B131: Other
D135: TOTAL | F135: =SUM(F9:F134) -> 1060

Sheet 2. Interest Calculator
E2: Wedding Costs Calculator
B4: Use the expenses sheet to work out your costs, then use the calculator to see how long it will take to pay off by entering your
B5: expected payment amount and the interest rate (if any) that you have to pay
C8: The amount you think you'll spend: (number shown is from the costs sheet) | D8: ='1. Wedding Costs and Expenses'!F135 -> 1060 | F8: Add in the amount you can afford to pay each month: | G8: 100
C10: Add in your Credit Card Interest Rate (APR) | D10: 0.125 | F10: Number of months | G10: =SUBTOTAL(2,Table1[Months]) -> 12
C12: (if no interest, just change to 0%) | F12: Total Interest Payable | G12: =SUBTOTAL(9,Table1[Monthly Interest charges]) -> 69.12597779
C14: =D10/365 -> 0.0003424657534 | D14: =C14*30.4 -> 0.0104109589
B28: Month | C28: Monthly Payment | D28: Monthly Outstanding Balance | E28: Monthly Interest | F28: Total Interest Charges
B29: Months | C29: Monthly Payment | D29: Monthly Outstanding Balance | E29: Monthly Interest charges | F29: Total Interest Charges
B30: 0 | C30: - | D30: =D8 -> 1060 | E30: =D30*$D$14 -> 11.03561644 | F30: =E30 -> 11.03561644
B31: 1 | C31: =$G$8 -> 100 | D31: =(D30-C31)+E30 -> 971.0356164 | E31: 10.1094119 | F31: =F30+E30 -> 22.07123288
B32: 2 | C32: 100 | D32: 881.1450283 | E32: 9.173564679 | F32: 32.18064477
B33: 3 | C33: 100 | D33: 790.318593 | E33: 8.227974393 | F33: 41.35420945
B34: 4 | C34: 100 | D34: 698.5465674 | E34: 7.272539606 | F34: 49.58218385
B35: 5 | C35: 100 | D35: 605.819107 | E35: 6.307157826 | F35: 56.85472345
B36: 6 | C36: 100 | D36: 512.1262648 | E36: 5.331725497 | F36: 63.16188128
B37: 7 | C37: 100 | D37: 417.4579903 | E37: 4.346137982 | F37: 68.49360677
B38: 8 | C38: 100 | D38: 321.8041283 | E38: 3.350289555 | F38: 72.83974476
B39: 9 | C39: 100 | D39: 225.1544179 | E39: 2.344073392 | F39: 76.19003431
B40: 10 | C40: 100 | D40: 127.4984913 | E40: 1.327381553 | F40: 78.5341077
B41: 11 | C41: 100 | D41: =(D40-C41)+E40 -> 28.82587282 | E41: 0.3001049773 | F41: =F40+E40 -> 79.86148926
B42: 12 | C42: 100 | D42: -70.87402221 | E42: -0.7378665325 | F42: 80.16159423
B43: 13 | C43: 100 | D43: -171.6118887 | E43: -1.786644321 | F43: 79.4237277
B44: 14 | C44: 100 | D44: -273.3985331 | E44: -2.846340892 | F44: 77.63708338
B45: 15 | C45: 100 | D45: -376.244874 | E45: -3.917069921 | F45: 74.79074249
B46: 16 | C46: 100 | D46: -480.1619439 | E46: -4.998946265 | F46: 70.87367257
B47: 17 | C47: 100 | D47: -585.1608901 | E47: -6.09208598 | F47: 65.8747263
B48: 18 | C48: 100 | D48: -691.2529761 | E48: -7.196606327 | F48: 59.78264032
B49: 19 | C49: 100 | D49: -798.4495824 | E49: -8.31262579 | F49: 52.586034
B50: 20 | C50: 100 | D50: -906.7622082 | E50: -9.440264086 | F50: =F49+E49 -> 44.27340821
B51: 21 | C51: 100 | D51: -1016.202472 | E51: -10.57964218 | F51: 34.83314412
B52: 22 | C52: 100 | D52: -1126.782114 | E52: -11.73088229 | F52: 24.25350194
B53: 23 | C53: 100 | D53: -1238.512997 | E53: -12.89410791 | F53: 12.52261965
B54: 24 | C54: 100 | D54: -1351.407105 | E54: -14.06944383 | F54: -0.3714882571
B55: 25 | C55: 100 | D55: =(D54-C55)+E54 -> -1465.476549 | E55: -15.25701612 | F55: =F54+E54 -> -14.44093209
B56: 26 | C56: 100 | D56: -1580.733565 | E56: -16.45695218 | F56: -29.69794821
B57: 27 | C57: 100 | D57: -1697.190517 | E57: -17.66938072 | F57: -46.15490039
B58: 28 | C58: 100 | D58: -1814.859898 | E58: -18.89443181 | F58: -63.82428111
B59: 29 | C59: 100 | D59: -1933.754329 | E59: -20.13223685 | F59: -82.71871292
B60: 30 | C60: 100 | D60: -2053.886566 | E60: -21.38292863 | F60: -102.8509498
B61: 31 | C61: 100 | D61: -2175.269495 | E61: -22.64664132 | F61: -124.2338784
B62: 32 | C62: 100 | D62: -2297.916136 | E62: -23.92351046 | F62: -146.8805197
B63: 33 | C63: 100 | D63: -2421.839647 | E63: -25.21367303 | F63: -170.8040302
B64: 34 | C64: 100 | D64: -2547.05332 | E64: -26.51726744 | F64: -196.0177032
B65: 35 | C65: 100 | D65: -2673.570587 | E65: -27.83443351 | F65: -222.5349707
B66: 36 | C66: 100 | D66: -2801.405021 | E66: -29.16531254 | F66: -250.3694042
B67: 37 | C67: 100 | D67: =(D66-C67)+E66 -> -2930.570333 | E67: -30.5100473 | F67: =F66+E66 -> -279.5347167
B68: 38 | C68: 100 | D68: -3061.08038 | E68: -31.86878204 | F68: -310.044764
B69: 39 | C69: 100 | D69: -3192.949162 | E69: -33.24166251 | F69: -341.9135461
B70: 40 | C70: 100 | D70: -3326.190825 | E70: -34.62883599 | F70: -375.1552086
B71: 41 | C71: 100 | D71: -3460.819661 | E71: -36.03045127 | F71: -409.7840446
B72: 42 | C72: 100 | D72: -3596.850112 | E72: -37.4466587 | F72: -445.8144958
B73: 43 | C73: 100 | D73: -3734.296771 | E73: -38.87761022 | F73: -483.2611545
B74: 44 | C74: 100 | D74: -3873.174381 | E74: -40.32345931 | F74: -522.1387647
B75: 45 | C75: 100 | D75: =(D74-C75)+E74 -> -4013.49784 | E75: -41.78436108 | F75: =F74+E74 -> -562.4622241
B76: 46 | C76: 100 | D76: -4155.282202 | E76: -43.26047224 | F76: -604.2465851
B77: 47 | C77: 100 | D77: -4298.542674 | E77: -44.75195112 | F77: -647.5070574
B78: 48 | C78: 100 | D78: -4443.294625 | E78: -46.25895774 | F78: -692.2590085
B79: 49 | C79: 100 | D79: -4589.553583 | E79: -47.78165374 | F79: -738.5179662
B80: 50 | C80: 100 | D80: -4737.335236 | E80: -49.32020246 | F80: -786.29962
B81: 51 | C81: 100 | D81: -4886.655439 | E81: -50.87476895 | F81: -835.6198224
B82: 52 | C82: 100 | D82: -5037.530208 | E82: -52.44551997 | F82: -886.4945914
B83: 53 | C83: 100 | D83: -5189.975728 | E83: -54.03262402 | F83: -938.9401114
B84: 54 | C84: 100 | D84: -5344.008352 | E84: -55.63625133 | F84: -992.9727354
B85: 55 | C85: 100 | D85: -5499.644603 | E85: -57.25657395 | F85: -1048.608987
B86: 56 | C86: 100 | D86: -5656.901177 | E86: -58.89376568 | F86: -1105.865561
B87: 57 | C87: 100 | D87: -5815.794943 | E87: -60.54800214 | F87: -1164.759326
B88: 58 | C88: 100 | D88: -5976.342945 | E88: -62.2194608 | F88: -1225.307328
B89: 59 | C89: 100 | D89: -6138.562406 | E89: -63.90832094 | F89: -1287.526789
B90: 60 | C90: 100 | D90: -6302.470727 | E90: -65.61476373 | F90: -1351.43511
B91: 61 | C91: 100 | D91: -6468.08549 | E91: -67.33897223 | F91: -1417.049874
B92: 62 | C92: 100 | D92: -6635.424463 | E92: -69.08113139 | F92: -1484.388846
B93: 63 | C93: 100 | D93: -6804.505594 | E93: -70.8414281 | F93: -1553.469978
B94: 64 | C94: 100 | D94: -6975.347022 | E94: =D94*$D$14 -> -72.62005119 | F94: -1624.311406
B95: 65 | C95: =$G$8 -> 100 | D95: -7147.967073 | E95: -74.41719145 | F95: -1696.931457
B96: 66 | C96: 100 | D96: -7322.384265 | E96: -76.23304166 | F96: -1771.348648
B97: 67 | C97: 100 | D97: -7498.617306 | E97: -78.06779661 | F97: -1847.58169
B98: 68 | C98: 100 | D98: -7676.685103 | E98: -79.92165313 | F98: -1925.649487
B99: 69 | C99: 100 | D99: -7856.606756 | E99: -81.79481006 | F99: -2005.57114
B100: 70 | C100: 100 | D100: -8038.401566 | E100: -83.68746836 | F100: -2087.36595
B101: 71 | C101: 100 | D101: -8222.089035 | E101: -85.59983104 | F101: -2171.053418
B102: 72 | C102: 100 | D102: -8407.688866 | E102: -87.53210326 | F102: -2256.653249
B103: 73 | C103: 100 | D103: -8595.220969 | E103: -89.48449228 | F103: -2344.185352
B104: 74 | C104: 100 | D104: -8784.705461 | E104: -91.45720754 | F104: -2433.669845
B105: 75 | C105: 100 | D105: -8976.162669 | E105: -93.45046066 | F105: -2525.127052
B106: 76 | C106: 100 | D106: -9169.613129 | E106: -95.46446546 | F106: -2618.577513
B107: 77 | C107: 100 | D107: -9365.077595 | E107: -97.49943797 | F107: -2714.041978
B108: 78 | C108: 100 | D108: -9562.577033 | E108: -99.55559651 | F108: -2811.541416
B109: 79 | C109: 100 | D109: -9762.132629 | E109: -101.6331616 | F109: -2911.097013
B110: 80 | C110: 100 | D110: -9963.765791 | E110: -103.7323562 | F110: -3012.730174
B111: 81 | C111: 100 | D111: -10167.49815 | E111: -105.8534054 | F111: -3116.462531
B112: 82 | C112: 100 | D112: -10373.35155 | E112: -107.9965367 | F112: -3222.315936
B113: 83 | C113: 100 | D113: -10581.34809 | E113: -110.1619801 | F113: -3330.312473
B114: 84 | C114: 100 | D114: -10791.51007 | E114: -112.3499678 | F114: -3440.474453
B115: 85 | C115: 100 | D115: -11003.86004 | E115: -114.5607346 | F115: -3552.824421
B116: 86 | C116: 100 | D116: -11218.42077 | E116: -116.7945176 | F116: -3667.385155
B117: 87 | C117: 100 | D117: -11435.21529 | E117: -119.0515564 | F117: -3784.179673
B118: 88 | C118: 100 | D118: -11654.26685 | E118: -121.3320932 | F118: -3903.231229
B119: 89 | C119: 100 | D119: -11875.59894 | E119: -123.6363725 | F119: -4024.563323
B120: 90 | C120: 100 | D120: -12099.23531 | E120: -125.9646416 | F120: -4148.199695
B121: 91 | C121: 100 | D121: -12325.19995 | E121: -128.3171502 | F121: -4274.164337
B122: 92 | C122: 100 | D122: -12553.5171 | E122: -130.6941507 | F122: -4402.481487
B123: 93 | C123: 100 | D123: -12784.21125 | E123: -133.095898 | F123: -4533.175638
B124: 94 | C124: 100 | D124: -13017.30715 | E124: -135.5226498 | F124: -4666.271536
B125: 95 | C125: 100 | D125: -13252.8298 | E125: -137.9746664 | F125: -4801.794185
B126: 96 | C126: 100 | D126: -13490.80447 | E126: -140.4522109 | F126: -4939.768852
B127: 97 | C127: 100 | D127: -13731.25668 | E127: -142.955549 | F127: -5080.221063
B128: 98 | C128: 100 | D128: -13974.21223 | E128: -145.4849492 | F128: -5223.176612
B129: 99 | C129: 100 | D129: -14219.69718 | E129: -148.0406829 | F129: -5368.661561
B130: 100 | C130: 100 | D130: -14467.73786 | E130: -150.6230243 | F130: -5516.702244
B131: 101 | C131: 100 | D131: -14718.36088 | E131: -153.2322503 | F131: -5667.325268
B132: 102 | C132: 100 | D132: -14971.59313 | E132: -155.8686409 | F132: -5820.557518
B133: 103 | C133: 100 | D133: -15227.46178 | E133: -158.5324788 | F133: -5976.426159
B134: 104 | C134: 100 | D134: -15485.99425 | E134: -161.2240498 | F134: -6134.958638
B135: 105 | C135: 100 | D135: -15747.2183 | E135: -163.9436426 | F135: -6296.182688
B136: 106 | C136: 100 | D136: -16011.16195 | E136: -166.691549 | F136: -6460.12633
B137: 107 | C137: 100 | D137: -16277.8535 | E137: -169.4680638 | F137: -6626.817879
B138: 108 | C138: 100 | D138: -16547.32156 | E138: -172.2734847 | F138: -6796.285943
B139: 109 | C139: 100 | D139: =(D138-C139)+E138 -> -16819.59504 | E139: -175.1081128 | F139: =F138+E138 -> -6968.559428
B140: 110 | C140: 100 | D140: -17094.70316 | E140: -177.972252 | F140: -7143.667541
B141: 111 | C141: 100 | D141: -17372.67541 | E141: -180.8662097 | F141: -7321.639793
B142: 112 | C142: 100 | D142: -17653.54162 | E142: -183.7902963 | F142: -7502.506003
B143: 113 | C143: 100 | D143: -17937.33192 | E143: -186.7448254 | F143: -7686.296299
B144: 114 | C144: 100 | D144: -18224.07674 | E144: -189.730114 | F144: -7873.041124
B145: 115 | C145: 100 | D145: -18513.80685 | E145: -192.7464823 | F145: -8062.771238
B146: 116 | C146: 100 | D146: -18806.55334 | E146: -195.7942539 | F146: -8255.517721
B147: 117 | C147: 100 | D147: -19102.34759 | E147: -198.8737557 | F147: -8451.311975
B148: 118 | C148: 100 | D148: -19401.22135 | E148: -201.9853181 | F148: -8650.18573
B149: 119 | C149: 100 | D149: -19703.20666 | E149: -205.1292749 | F149: -8852.171048
B150: 120 | C150: 100 | D150: -20008.33594 | E150: -208.3059632 | F150: -9057.300323
B151: 121 | C151: 100 | D151: -20316.6419 | E151: -211.5157239 | F151: -9265.606286
B152: 122 | C152: 100 | D152: -20628.15763 | E152: -214.7589013 | F152: -9477.12201
B153: 123 | C153: 100 | D153: -20942.91653 | E153: -218.0358433 | F153: -9691.880912
B154: 124 | C154: 100 | D154: -21260.95237 | E154: -221.3469014 | F154: -9909.916755
B155: 125 | C155: 100 | D155: -21582.29927 | E155: -224.6924308 | F155: -10131.26366
B156: 126 | C156: 100 | D156: -21906.9917 | E156: -228.0727903 | F156: -10355.95609
B157: 127 | C157: 100 | D157: -22235.06449 | E157: -231.4883427 | F157: -10584.02888
B158: 128 | C158: 100 | D158: -22566.55284 | E158: =D158*$D$14 -> -234.9394542 | F158: -10815.51722
B159: 129 | C159: =$G$8 -> 100 | D159: -22901.49229 | E159: -238.4264951 | F159: -11050.45667
B160: 130 | C160: 100 | D160: -23239.91879 | E160: -241.9498394 | F160: -11288.88317
B161: 131 | C161: 100 | D161: -23581.86863 | E161: -245.5098651 | F161: -11530.83301
B162: 132 | C162: 100 | D162: -23927.37849 | E162: -249.1069541 | F162: -11776.34287
B163: 133 | C163: 100 | D163: -24276.48544 | E163: -252.7414923 | F163: -12025.44983
B164: 134 | C164: 100 | D164: -24629.22694 | E164: -256.4138695 | F164: -12278.19132
B165: 135 | C165: 100 | D165: -24985.64081 | E165: -260.1244796 | F165: -12534.60519
B166: 136 | C166: 100 | D166: -25345.76529 | E166: -263.8737208 | F166: -12794.72967
B167: 137 | C167: 100 | D167: -25709.63901 | E167: -267.6619951 | F167: -13058.60339
B168: 138 | C168: 100 | D168: -26077.301 | E168: -271.4897091 | F168: -13326.26539
B169: 139 | C169: 100 | D169: -26448.79071 | E169: -275.3572732 | F169: -13597.75509
B170: 140 | C170: 100 | D170: -26824.14798 | E170: -279.2651023 | F170: -13873.11237
B171: 141 | C171: 100 | D171: -27203.41309 | E171: -283.2136157 | F171: -14152.37747
B172: 142 | C172: 100 | D172: -27586.6267 | E172: -287.2032369 | F172: -14435.59109
B173: 143 | C173: 100 | D173: -27973.82994 | E173: -291.2343939 | F173: -14722.79432
B174: 144 | C174: 100 | D174: -28365.06433 | E174: -295.3075191 | F174: -15014.02872
B175: 145 | C175: 100 | D175: -28760.37185 | E175: -299.4230494 | F175: -15309.33624
B176: 146 | C176: 100 | D176: -29159.7949 | E176: -303.5814264 | F176: -15608.75929
B177: 147 | C177: 100 | D177: -29563.37633 | E177: -307.783096 | F177: -15912.34071
B178: 148 | C178: 100 | D178: -29971.15942 | E178: -312.0285091 | F178: -16220.12381
B179: 149 | C179: 100 | D179: -30383.18793 | E179: -316.3181209 | F179: -16532.15232
B180: 150 | C180: 100 | D180: -30799.50605 | E180: -320.6523918 | F180: -16848.47044
B181: 151 | C181: 100 | D181: -31220.15845 | E181: -325.0317866 | F181: -17169.12283
B182: 152 | C182: 100 | D182: -31645.19023 | E182: -329.456775 | F182: -17494.15462
B183: 153 | C183: 100 | D183: -32074.64701 | E183: -333.9278319 | F183: -17823.61139
B184: 154 | C184: 100 | D184: -32508.57484 | E184: -338.4454367 | F184: -18157.53922
B185: 155 | C185: 100 | D185: -32947.02028 | E185: -343.0100741 | F185: -18495.98466
B186: 156 | C186: 100 | D186: -33390.03035 | E186: -347.6222338 | F186: -18838.99473
B187: 157 | C187: 100 | D187: -33837.65258 | E187: -352.2824105 | F187: -19186.61697
B188: 158 | C188: 100 | D188: -34289.93499 | E188: -356.991104 | F188: -19538.89938
B189: 159 | C189: 100 | D189: -34746.9261 | E189: -361.7488197 | F189: -19895.89048
B190: 160 | C190: 100 | D190: -35208.67492 | E190: -366.5560676 | F190: -20257.6393
B191: 161 | C191: 100 | D191: -35675.23099 | E191: -371.4133637 | F191: -20624.19537
B192: 162 | C192: 100 | D192: -36146.64435 | E192: -376.3212288 | F192: -20995.60873
B193: 163 | C193: 100 | D193: -36622.96558 | E193: -381.2801896 | F193: -21371.92996
B194: 164 | C194: 100 | D194: -37104.24577 | E194: -386.2907779 | F194: -21753.21015
B195: 165 | C195: 100 | D195: -37590.53655 | E195: -391.3535312 | F195: -22139.50093
B196: 166 | C196: 100 | D196: -38081.89008 | E196: -396.4689926 | F196: -22530.85446
B197: 167 | C197: 100 | D197: -38578.35907 | E197: -401.6377109 | F197: -22927.32345
B198: 168 | C198: 100 | D198: -39079.99678 | E198: -406.8602404 | F198: -23328.96116
B199: 169 | C199: 100 | D199: -39586.85702 | E199: -412.1371416 | F199: -23735.8214
B200: 170 | C200: 100 | D200: -40098.99416 | E200: -417.4689803 | F200: -24147.95855
B201: 171 | C201: 100 | D201: -40616.46314 | E201: -422.8563286 | F201: -24565.42753
B202: 172 | C202: 100 | D202: -41139.31947 | E202: -428.2997644 | F202: -24988.28385
B203: 173 | C203: 100 | D203: =(D202-C203)+E202 -> -41667.61924 | E203: -433.7998715 | F203: =F202+E202 -> -25416.58362
B204: 174 | C204: 100 | D204: -42201.41911 | E204: -439.35724 | F204: -25850.38349
B205: 175 | C205: 100 | D205: -42740.77635 | E205: -444.9724661 | F205: -26289.74073
B206: 176 | C206: 100 | D206: -43285.74881 | E206: -450.646152 | F206: -26734.7132
B207: 177 | C207: 100 | D207: -43836.39496 | E207: -456.3789065 | F207: -27185.35935
B208: 178 | C208: 100 | D208: -44392.77387 | E208: -462.1713444 | F208: -27641.73825
B209: 179 | C209: 100 | D209: -44954.94522 | E209: -468.0240872 | F209: -28103.9096
B210: 180 | C210: 100 | D210: -45522.9693 | E210: -473.9377626 | F210: -28571.93369
B211: 181 | C211: 100 | D211: -46096.90707 | E211: -479.9130051 | F211: -29045.87145
B212: 182 | C212: 100 | D212: -46676.82007 | E212: -485.9504555 | F212: -29525.78445
B213: 183 | C213: 100 | D213: -47262.77053 | E213: -492.0507616 | F213: -30011.73491
B214: 184 | C214: 100 | D214: -47854.82129 | E214: -498.2145778 | F214: -30503.78567
B215: 185 | C215: 100 | D215: -48453.03587 | E215: -504.4425652 | F215: -31002.00025
B216: 186 | C216: 100 | D216: -49057.47843 | E216: -510.7353919 | F216: -31506.44281
B217: 187 | C217: 100 | D217: -49668.21382 | E217: -517.0937329 | F217: -32017.17821
B218: 188 | C218: 100 | D218: -50285.30756 | E218: -523.5182704 | F218: -32534.27194
B219: 189 | C219: 100 | D219: -50908.82583 | E219: -530.0096935 | F219: -33057.79021
B220: 190 | C220: 100 | D220: -51538.83552 | E220: -536.5686986 | F220: -33587.7999
... 605 more rows

Sheet 3. About This Calculator
